[Event "Titled Tuesday Blitz October 31 Late 2023"]
[White "Mazurkiewicz, Michal"]
[Black "Skatchkov, Valery"]
[WhiteFideId "1124943"]
[BlackFideId "24195812"]
[WhiteElo "2448"]
[BlackElo "2586"]
[Result "1/2-1/2"]
[Round "7"]
[TimeControl "180+1"]
[Date "2023.10.31"]
[WhiteClock "0:00:17"]
[BlackClock "0:01:15"]
[Board "65"]

1. e4 {[%clk 0:02:59]}  e5 {[%clk 0:02:58]} 2. Nf3 {[%clk 0:02:59]}  Nf6 {[%clk 0:02:59]} 3. d3 {[%clk 0:02:57]}  Nc6 {[%clk 0:02:59]} 4. g3 {[%clk 0:02:57]}  d5 {[%clk 0:02:58]} 5. exd5 {[%clk 0:02:58]}  Nxd5 {[%clk 0:02:59]} 6. Bg2 {[%clk 0:02:59]}  Bc5 {[%clk 0:02:59]} 7. O-O {[%clk 0:02:59]}  O-O {[%clk 0:03:00]} 8. Nc3 {[%clk 0:02:56]}  Nxc3 {[%clk 0:02:57]} 9. bxc3 {[%clk 0:02:56]}  Bf5 {[%clk 0:02:57]} 10. Rb1 {[%clk 0:02:54]}  Bb6 {[%clk 0:02:56]} 11. a4 {[%clk 0:02:52]}  Qd7 {[%clk 0:02:55]} 12. Re1 {[%clk 0:02:51]}  Rae8 {[%clk 0:02:54]} 13. Nd2 {[%clk 0:02:49]}  Bg4 {[%clk 0:02:42]} 14. Bf3 {[%clk 0:02:23]}  Bxf3 {[%clk 0:02:40]} 15. Qxf3 {[%clk 0:02:24]}  f5 {[%clk 0:02:35]} 16. Ba3 {[%clk 0:01:51]}  e4 {[%clk 0:02:34]} 17. Qg2 {[%clk 0:01:48]}  exd3 {[%clk 0:02:24]} 18. cxd3 {[%clk 0:01:10]}  Qxd3 {[%clk 0:01:54]} 19. Bxf8 {[%clk 0:01:09]}  Rxe1+ {[%clk 0:01:55]} 20. Rxe1 {[%clk 0:01:08]}  Qxd2 {[%clk 0:01:55]} 21. Re8 {[%clk 0:00:56]}  Kf7 {[%clk 0:01:55]} 22. Rc8 {[%clk 0:00:45]}  Ne5 {[%clk 0:01:46]} 23. Bc5 {[%clk 0:00:25]}  Bxc5 {[%clk 0:01:36]} 24. Rxc7+ {[%clk 0:00:25]}  Be7 {[%clk 0:01:31]} 25. Qxb7 {[%clk 0:00:25]}  Qd6 {[%clk 0:01:23]} 26. Qxa7 {[%clk 0:00:20]}  f4 {[%clk 0:01:23]} 27. gxf4 {[%clk 0:00:19]}  Qd1+ {[%clk 0:01:23]} 28. Kg2 {[%clk 0:00:18]}  Qg4+ {[%clk 0:01:24]} 29. Kf1 {[%clk 0:00:18]}  Qd1+ {[%clk 0:01:24]} 30. Kg2 {[%clk 0:00:18]}  Qd5+ {[%clk 0:01:25]} 31. Kf1 {[%clk 0:00:17]}  Qh1+ {[%clk 0:01:25]} 32. Ke2 {[%clk 0:00:17]}  Qf3+ {[%clk 0:01:24]} 33. Kf1 {[%clk 0:00:17]}  Qd1+ {[%clk 0:01:15]} 34. Kg2 {[%clk 0:00:17]} 1/2-1/2


[Site "https://www.chess.com"]

[Event "Titled Tuesday Blitz October 31 Late 2023"]
[White "Zakarian, David"]
[Black "Ezat, Mohamed"]
[WhiteFideId "13301276"]
[BlackFideId "10600906"]
[WhiteElo "2437"]
[BlackElo "2585"]
[Result "0-1"]
[Round "7"]
[TimeControl "180+1"]
[Date "2023.10.31"]
[WhiteClock "0:00:00"]
[BlackClock "0:00:27"]
[Board "67"]

1. f4 {[%clk 0:03:00]}  Nf6 {[%clk 0:02:56]} 2. Nf3 {[%clk 0:02:58]}  g6 {[%clk 0:02:52]} 3. Nc3 {[%clk 0:02:51]}  d5 {[%clk 0:02:51]} 4. e3 {[%clk 0:02:51]}  Bg7 {[%clk 0:02:44]} 5. d4 {[%clk 0:02:49]}  Bg4 {[%clk 0:02:40]} 6. Be2 {[%clk 0:02:48]}  Bxf3 {[%clk 0:02:39]} 7. Bxf3 {[%clk 0:02:48]}  O-O {[%clk 0:02:39]} 8. O-O {[%clk 0:02:45]}  c5 {[%clk 0:02:39]} 9. dxc5 {[%clk 0:02:44]}  e6 {[%clk 0:02:39]} 10. Rb1 {[%clk 0:02:37]}  Nfd7 {[%clk 0:02:27]} 11. Na4 {[%clk 0:02:35]}  Qa5 {[%clk 0:02:19]} 12. c4 {[%clk 0:02:34]}  Nxc5 {[%clk 0:02:11]} 13. Nxc5 {[%clk 0:02:15]}  Qxc5 {[%clk 0:02:10]} 14. cxd5 {[%clk 0:02:14]}  Rd8 {[%clk 0:02:08]} 15. Qb3 {[%clk 0:02:02]}  exd5 {[%clk 0:02:04]} 16. Qxb7 {[%clk 0:01:52]}  Nc6 {[%clk 0:02:03]} 17. b4 {[%clk 0:01:47]}  Qd6 {[%clk 0:02:00]} 18. b5 {[%clk 0:01:41]}  Ne7 {[%clk 0:01:52]} 19. Qa6 {[%clk 0:01:32]}  Qxa6 {[%clk 0:01:39]} 20. bxa6 {[%clk 0:01:33]}  Nf5 {[%clk 0:01:38]} 21. Bd2 {[%clk 0:01:27]}  Rac8 {[%clk 0:01:36]} 22. Rfc1 {[%clk 0:01:25]}  h5 {[%clk 0:01:33]} 23. Rb7 {[%clk 0:01:01]}  d4 {[%clk 0:01:31]} 24. e4 {[%clk 0:00:57]}  Nd6 {[%clk 0:01:20]} 25. Rxa7 {[%clk 0:00:50]}  Nc4 {[%clk 0:01:18]} 26. Rd1 {[%clk 0:00:34]}  d3 {[%clk 0:01:16]} 27. e5 {[%clk 0:00:32]}  Bf8 {[%clk 0:01:14]} 28. Kf1 {[%clk 0:00:26]}  Bc5 {[%clk 0:01:07]} 29. Rb7 {[%clk 0:00:23]}  Be3 {[%clk 0:01:01]} 30. a7 {[%clk 0:00:14]}  Bxd2 {[%clk 0:00:52]} 31. Kf2 {[%clk 0:00:07]}  Bxf4 {[%clk 0:00:38]} 32. Rb3 {[%clk 0:00:02]}  Nxe5 {[%clk 0:00:32]} 33. a8=Q {[%clk 0:00:00]}  Ng4+ {[%clk 0:00:27]} 0-1


[Site "https://www.chess.com"]

[Event "Titled Tuesday Blitz October 31 Late 2023"]
[White "hristos03"]
[Black "balachess2006"]
[WhiteElo "2436"]
[BlackElo "2582"]
[Result "1/2-1/2"]
[Round "7"]
[TimeControl "180+1"]
[Date "2023.10.31"]
[WhiteClock "0:00:08"]
[BlackClock "0:01:46"]
[Board "68"]

1. e4 {[%clk 0:02:59]}  c5 {[%clk 0:02:58]} 2. Nf3 {[%clk 0:02:59]}  Nc6 {[%clk 0:02:59]} 3. d4 {[%clk 0:02:59]}  cxd4 {[%clk 0:02:59]} 4. Nxd4 {[%clk 0:02:59]}  g6 {[%clk 0:03:00]} 5. Nc3 {[%clk 0:02:54]}  Bg7 {[%clk 0:02:59]} 6. Be3 {[%clk 0:02:50]}  Nf6 {[%clk 0:02:59]} 7. f3 {[%clk 0:02:44]}  O-O {[%clk 0:02:51]} 8. Bc4 {[%clk 0:02:31]}  Na5 {[%clk 0:02:50]} 9. Bb3 {[%clk 0:02:30]}  Nxb3 {[%clk 0:02:49]} 10. axb3 {[%clk 0:02:27]}  d6 {[%clk 0:02:47]} 11. O-O {[%clk 0:02:27]}  a6 {[%clk 0:02:46]} 12. Qd2 {[%clk 0:02:23]}  Bd7 {[%clk 0:02:45]} 13. Kh1 {[%clk 0:02:23]}  Bc6 {[%clk 0:02:45]} 14. Nxc6 {[%clk 0:02:17]}  bxc6 {[%clk 0:02:46]} 15. Ra4 {[%clk 0:02:14]}  Nd7 {[%clk 0:02:42]} 16. Rfa1 {[%clk 0:02:11]}  a5 {[%clk 0:02:39]} 17. Nd1 {[%clk 0:02:03]}  f5 {[%clk 0:02:32]} 18. exf5 {[%clk 0:01:37]}  Rxf5 {[%clk 0:02:33]} 19. Bd4 {[%clk 0:01:31]}  Rd5 {[%clk 0:02:28]} 20. Ne3 {[%clk 0:01:30]}  Rxd4 {[%clk 0:02:18]} 21. Rxd4 {[%clk 0:01:28]}  Bxd4 {[%clk 0:02:19]} 22. Qxd4 {[%clk 0:01:28]}  Qb6 {[%clk 0:02:18]} 23. Qxb6 {[%clk 0:01:10]}  Nxb6 {[%clk 0:02:19]} 24. Nc4 {[%clk 0:01:10]}  Nxc4 {[%clk 0:02:16]} 25. bxc4 {[%clk 0:01:11]}  Kf7 {[%clk 0:02:16]} 26. Kg1 {[%clk 0:01:11]}  Ke6 {[%clk 0:02:15]} 27. Kf2 {[%clk 0:01:10]}  Kd7 {[%clk 0:02:14]} 28. Ra4 {[%clk 0:01:05]}  Kc7 {[%clk 0:02:14]} 29. Ke3 {[%clk 0:01:03]}  Kb6 {[%clk 0:02:13]} 30. b3 {[%clk 0:01:00]}  Rf8 {[%clk 0:02:12]} 31. h4 {[%clk 0:00:52]}  Rf6 {[%clk 0:02:10]} 32. c3 {[%clk 0:00:44]}  Re6+ {[%clk 0:02:10]} 33. Kd2 {[%clk 0:00:18]}  Re5 {[%clk 0:02:08]} 34. b4 {[%clk 0:00:17]}  Rh5 {[%clk 0:02:03]} 35. g3 {[%clk 0:00:16]}  Rf5 {[%clk 0:02:02]} 36. Ke3 {[%clk 0:00:16]}  Re5+ {[%clk 0:02:01]} 37. Kd2 {[%clk 0:00:15]}  h6 {[%clk 0:01:59]} 38. c5+ {[%clk 0:00:09]}  dxc5 {[%clk 0:01:54]} 39. Rxa5 {[%clk 0:00:09]}  Rd5+ {[%clk 0:01:54]} 40. Kc2 {[%clk 0:00:06]}  cxb4 {[%clk 0:01:50]} 41. Rxd5 {[%clk 0:00:06]}  cxd5 {[%clk 0:01:51]} 42. cxb4 {[%clk 0:00:07]}  Kb5 {[%clk 0:01:51]} 43. Kc3 {[%clk 0:00:07]}  e5 {[%clk 0:01:51]} 44. f4 {[%clk 0:00:05]}  d4+ {[%clk 0:01:45]} 45. Kd3 {[%clk 0:00:05]}  Kxb4 {[%clk 0:01:45]} 46. fxe5 {[%clk 0:00:05]}  Kc5 {[%clk 0:01:45]} 47. Ke4 {[%clk 0:00:05]}  d3 {[%clk 0:01:45]} 48. Kxd3 {[%clk 0:00:05]}  Kd5 {[%clk 0:01:46]} 49. Ke3 {[%clk 0:00:06]}  Kxe5 {[%clk 0:01:46]} 50. Kf3 {[%clk 0:00:07]}  h5 {[%clk 0:01:46]} 51. g4 {[%clk 0:00:07]}  hxg4+ {[%clk 0:01:45]} 52. Kxg4 {[%clk 0:00:07]}  Kf6 {[%clk 0:01:45]} 53. h5 {[%clk 0:00:08]}  gxh5+ {[%clk 0:01:46]} 54. Kxh5 {[%clk 0:00:08]} 1/2-1/2


[Site "https://www.chess.com"]

[Event "Titled Tuesday Blitz October 31 Late 2023"]
[White "Kochiev, Ivan"]
[Black "Devagharan, Devina"]
[WhiteFideId "2917890"]
[BlackFideId "2061600"]
[WhiteElo "2577"]
[BlackElo "2435"]
[Result "1-0"]
[Round "7"]
[TimeControl "180+1"]
[Date "2023.10.31"]
[WhiteClock "0:01:02"]
[BlackClock "0:00:00"]
[Board "69"]

1. e4 {[%clk 0:02:53]}  c5 {[%clk 0:02:56]} 2. Nf3 {[%clk 0:02:53]}  d6 {[%clk 0:02:55]} 3. d4 {[%clk 0:02:53]}  cxd4 {[%clk 0:02:56]} 4. Nxd4 {[%clk 0:02:54]}  Nf6 {[%clk 0:02:56]} 5. f3 {[%clk 0:02:55]}  Nc6 {[%clk 0:02:56]} 6. c4 {[%clk 0:02:55]}  g6 {[%clk 0:02:51]} 7. Nc3 {[%clk 0:02:55]}  Bg7 {[%clk 0:02:50]} 8. Be3 {[%clk 0:02:55]}  O-O {[%clk 0:02:30]} 9. Be2 {[%clk 0:02:54]}  Nxd4 {[%clk 0:02:25]} 10. Bxd4 {[%clk 0:02:55]}  Nd7 {[%clk 0:02:26]} 11. Be3 {[%clk 0:02:52]}  Qa5 {[%clk 0:02:25]} 12. O-O {[%clk 0:02:50]}  Nf6 {[%clk 0:02:12]} 13. Qd2 {[%clk 0:02:47]}  Qc7 {[%clk 0:02:06]} 14. Rac1 {[%clk 0:02:46]}  b6 {[%clk 0:02:05]} 15. Rfd1 {[%clk 0:02:44]}  Bb7 {[%clk 0:02:04]} 16. b4 {[%clk 0:02:40]}  Rac8 {[%clk 0:02:01]} 17. a4 {[%clk 0:02:34]}  Rfd8 {[%clk 0:01:54]} 18. Nd5 {[%clk 0:02:22]}  Qd7 {[%clk 0:01:36]} 19. b5 {[%clk 0:02:15]}  Bxd5 {[%clk 0:01:12]} 20. cxd5 {[%clk 0:02:08]}  Qb7 {[%clk 0:01:05]} 21. Rc6 {[%clk 0:02:08]}  Nd7 {[%clk 0:01:04]} 22. Rdc1 {[%clk 0:02:03]}  Ne5 {[%clk 0:01:02]} 23. a5 {[%clk 0:02:01]}  bxa5 {[%clk 0:00:53]} 24. Qxa5 {[%clk 0:01:53]}  Nxc6 {[%clk 0:00:36]} 25. bxc6 {[%clk 0:01:50]}  Qb2 {[%clk 0:00:28]} 26. Ba6 {[%clk 0:01:44]}  Bd4 {[%clk 0:00:26]} 27. Bxd4 {[%clk 0:01:28]}  Qxc1+ {[%clk 0:00:24]} 28. Kf2 {[%clk 0:01:29]}  Rb8 {[%clk 0:00:14]} 29. c7 {[%clk 0:01:23]}  Rdc8 {[%clk 0:00:07]} 30. cxb8=Q {[%clk 0:01:19]}  Rxb8 {[%clk 0:00:08]} 31. Be2 {[%clk 0:01:11]}  h5 {[%clk 0:00:05]} 32. Qxa7 {[%clk 0:01:09]}  Rc8 {[%clk 0:00:04]} 33. Qxe7 {[%clk 0:01:08]}  Qf4 {[%clk 0:00:03]} 34. g3 {[%clk 0:01:02]}  Qh6 {[%clk 0:00:00]} 35. Qxd6 {[%clk 0:01:02]} 1-0


[Site "https://www.chess.com"]

[Event "Titled Tuesday Blitz October 31 Late 2023"]
[White "Polaczek, Richard"]
[Black "Aldokhin, Ivan"]
[WhiteFideId "200026"]
[BlackFideId "24115720"]
[WhiteElo "2430"]
[BlackElo "2553"]
[Result "1-0"]
[Round "7"]
[TimeControl "180+1"]
[Date "2023.10.31"]
[WhiteClock "0:00:35"]
[BlackClock "0:00:00"]
[Board "71"]

1. d4 {[%clk 0:03:00]}  Nf6 {[%clk 0:02:46]} 2. Bg5 {[%clk 0:02:59]}  g6 {[%clk 0:02:41]} 3. Bxf6 {[%clk 0:02:58]}  exf6 {[%clk 0:02:42]} 4. c4 {[%clk 0:02:58]}  d5 {[%clk 0:02:39]} 5. cxd5 {[%clk 0:02:51]}  Qxd5 {[%clk 0:02:32]} 6. Nc3 {[%clk 0:02:51]}  Qa5 {[%clk 0:02:25]} 7. e3 {[%clk 0:02:50]}  c6 {[%clk 0:02:13]} 8. Bd3 {[%clk 0:02:44]}  Bd6 {[%clk 0:02:12]} 9. Ne2 {[%clk 0:02:42]}  Qc7 {[%clk 0:02:02]} 10. h3 {[%clk 0:02:41]}  Nd7 {[%clk 0:01:47]} 11. O-O {[%clk 0:02:40]}  f5 {[%clk 0:01:36]} 12. Rc1 {[%clk 0:02:38]}  a6 {[%clk 0:01:34]} 13. a3 {[%clk 0:02:32]}  Nf6 {[%clk 0:01:32]} 14. b4 {[%clk 0:02:31]}  O-O {[%clk 0:01:28]} 15. Na4 {[%clk 0:02:14]}  Qe7 {[%clk 0:01:15]} 16. Nc5 {[%clk 0:02:11]}  Bc7 {[%clk 0:01:09]} 17. Re1 {[%clk 0:02:06]}  Qd6 {[%clk 0:01:08]} 18. g3 {[%clk 0:02:05]}  b6 {[%clk 0:00:57]} 19. Nb3 {[%clk 0:01:59]}  Be6 {[%clk 0:00:57]} 20. Nf4 {[%clk 0:01:55]}  Bd7 {[%clk 0:00:57]} 21. Qe2 {[%clk 0:01:47]}  Bc8 {[%clk 0:00:48]} 22. Rc2 {[%clk 0:01:40]}  Bb7 {[%clk 0:00:48]} 23. Rec1 {[%clk 0:01:39]}  Kh8 {[%clk 0:00:31]} 24. Rb1 {[%clk 0:01:35]}  g5 {[%clk 0:00:30]} 25. Nh5 {[%clk 0:01:33]}  f4 {[%clk 0:00:30]} 26. Nc5 {[%clk 0:01:23]}  Bc8 {[%clk 0:00:18]} 27. Nxf6 {[%clk 0:01:09]}  Qxf6 {[%clk 0:00:18]} 28. Qh5 {[%clk 0:01:08]}  Qg7 {[%clk 0:00:11]} 29. Ne4 {[%clk 0:01:00]}  Bb7 {[%clk 0:00:10]} 30. Nxg5 {[%clk 0:00:44]}  fxg3 {[%clk 0:00:09]} 31. f4 {[%clk 0:00:44]}  h6 {[%clk 0:00:05]} 32. Rbc1 {[%clk 0:00:41]}  Rae8 {[%clk 0:00:04]} 33. Rxc6 {[%clk 0:00:40]}  Bxc6 {[%clk 0:00:03]} 34. Rxc6 {[%clk 0:00:40]}  f6 {[%clk 0:00:00]} 35. Rxc7 {[%clk 0:00:35]} 1-0


[Site "https://www.chess.com"]

[Event "Titled Tuesday Blitz October 31 Late 2023"]
[White "Golubev, Mikhail"]
[Black "Dmitrenko, Viktor"]
[WhiteFideId "14100983"]
[BlackFideId "14110270"]
[WhiteElo "2544"]
[BlackElo "2377"]
[Result "0-1"]
[Round "7"]
[TimeControl "180+1"]
[Date "2023.10.31"]
[WhiteClock "0:00:00"]
[BlackClock "0:00:12"]
[Board "74"]

1. e4 {[%clk 0:03:00]}  e6 {[%clk 0:02:59]} 2. d4 {[%clk 0:03:00]}  d5 {[%clk 0:03:00]} 3. Nc3 {[%clk 0:03:00]}  Bb4 {[%clk 0:02:59]} 4. e5 {[%clk 0:02:59]}  Ne7 {[%clk 0:02:57]} 5. a3 {[%clk 0:02:58]}  Bxc3+ {[%clk 0:02:57]} 6. bxc3 {[%clk 0:02:59]}  c5 {[%clk 0:02:57]} 7. a4 {[%clk 0:02:59]}  Qc7 {[%clk 0:02:56]} 8. Nf3 {[%clk 0:02:55]}  Nbc6 {[%clk 0:02:55]} 9. Ba3 {[%clk 0:02:54]}  cxd4 {[%clk 0:02:39]} 10. cxd4 {[%clk 0:02:55]}  Qa5+ {[%clk 0:02:38]} 11. Qd2 {[%clk 0:02:55]}  Qxd2+ {[%clk 0:02:37]} 12. Kxd2 {[%clk 0:02:56]}  b6 {[%clk 0:02:36]} 13. Bb5 {[%clk 0:02:08]}  Bd7 {[%clk 0:02:35]} 14. Rhb1 {[%clk 0:02:06]}  h6 {[%clk 0:02:23]} 15. h3 {[%clk 0:01:57]}  f6 {[%clk 0:02:04]} 16. exf6 {[%clk 0:01:39]}  gxf6 {[%clk 0:02:05]} 17. c4 {[%clk 0:01:22]}  dxc4 {[%clk 0:02:02]} 18. Bxc4 {[%clk 0:01:21]}  Na5 {[%clk 0:01:59]} 19. Ba2 {[%clk 0:01:20]}  Rc8 {[%clk 0:01:49]} 20. Re1 {[%clk 0:01:15]}  Nc4+ {[%clk 0:01:43]} 21. Bxc4 {[%clk 0:01:13]}  Rxc4 {[%clk 0:01:44]} 22. a5 {[%clk 0:01:06]}  bxa5 {[%clk 0:01:37]} 23. Bc5 {[%clk 0:00:45]}  Kf7 {[%clk 0:00:58]} 24. Rxa5 {[%clk 0:00:42]}  Nc6 {[%clk 0:00:52]} 25. Ra3 {[%clk 0:00:36]}  e5 {[%clk 0:00:47]} 26. Kd3 {[%clk 0:00:32]}  Be6 {[%clk 0:00:43]} 27. Nd2 {[%clk 0:00:31]}  Rxc5 {[%clk 0:00:38]} 28. dxc5 {[%clk 0:00:30]}  Rd8+ {[%clk 0:00:38]} 29. Kc3 {[%clk 0:00:27]}  Nd4 {[%clk 0:00:32]} 30. Rxa7+ {[%clk 0:00:24]}  Kg6 {[%clk 0:00:31]} 31. Ra6 {[%clk 0:00:20]}  Bf5 {[%clk 0:00:23]} 32. Rb6 {[%clk 0:00:18]}  Nc2 {[%clk 0:00:19]} 33. Rc1 {[%clk 0:00:18]}  Nd4 {[%clk 0:00:19]} 34. c6 {[%clk 0:00:17]}  Ne2+ {[%clk 0:00:19]} 35. Kb4 {[%clk 0:00:15]}  Nxc1 {[%clk 0:00:20]} 36. c7 {[%clk 0:00:14]}  Rc8 {[%clk 0:00:19]} 37. Nc4 {[%clk 0:00:14]}  Rxc7 {[%clk 0:00:15]} 38. Nxe5+ {[%clk 0:00:14]}  Kh7 {[%clk 0:00:14]} 39. Ng4 {[%clk 0:00:13]}  Nd3+ {[%clk 0:00:13]} 40. Kb3 {[%clk 0:00:12]}  Bxg4 {[%clk 0:00:13]} 41. hxg4 {[%clk 0:00:12]}  Kg7 {[%clk 0:00:12]} 42. f3 {[%clk 0:00:10]}  Nc5+ {[%clk 0:00:12]} 43. Kb4 {[%clk 0:00:08]}  Nd7 {[%clk 0:00:13]} 44. Re6 {[%clk 0:00:06]}  Ne5 {[%clk 0:00:13]} 45. Kb5 {[%clk 0:00:05]}  Nd3 {[%clk 0:00:12]} 46. Kb6 {[%clk 0:00:05]}  Rf7 {[%clk 0:00:11]} 47. Kc6 {[%clk 0:00:04]}  Nf4 {[%clk 0:00:11]} 48. Re4 {[%clk 0:00:03]}  Nxg2 {[%clk 0:00:11]} 49. Kd6 {[%clk 0:00:04]}  Nh4 {[%clk 0:00:11]} 50. f4 {[%clk 0:00:00]}  Ng6 {[%clk 0:00:12]} 0-1


[Site "https://www.chess.com"]

[Event "Titled Tuesday Blitz October 31 Late 2023"]
[White "Deeper44"]
[Black "Bogaudinov, Rushan"]
[BlackFideId "4129288"]
[WhiteElo "2532"]
[BlackElo "2372"]
[Result "1-0"]
[Round "7"]
[TimeControl "180+1"]
[Date "2023.10.31"]
[WhiteClock "0:00:35"]
[BlackClock "0:00:16"]
[Board "76"]

1. d4 {[%clk 0:02:59]}  Nf6 {[%clk 0:02:59]} 2. c4 {[%clk 0:02:59]}  e6 {[%clk 0:02:59]} 3. g3 {[%clk 0:03:00]}  Bb4+ {[%clk 0:02:58]} 4. Bd2 {[%clk 0:03:00]}  a5 {[%clk 0:02:59]} 5. Bg2 {[%clk 0:03:00]}  O-O {[%clk 0:02:59]} 6. Nf3 {[%clk 0:03:00]}  d5 {[%clk 0:02:59]} 7. Qc2 {[%clk 0:03:00]}  Nc6 {[%clk 0:02:57]} 8. O-O {[%clk 0:02:59]}  Ne4 {[%clk 0:02:54]} 9. Bf4 {[%clk 0:02:56]}  Bd6 {[%clk 0:02:47]} 10. Nc3 {[%clk 0:02:53]}  Nb4 {[%clk 0:02:46]} 11. Qd1 {[%clk 0:02:46]}  Bxf4 {[%clk 0:02:45]} 12. gxf4 {[%clk 0:02:47]}  Qf6 {[%clk 0:02:14]} 13. e3 {[%clk 0:02:43]}  c6 {[%clk 0:02:09]} 14. Nxe4 {[%clk 0:02:40]}  dxe4 {[%clk 0:02:09]} 15. Ng5 {[%clk 0:02:30]}  h6 {[%clk 0:01:56]} 16. Nxe4 {[%clk 0:02:29]}  Qg6 {[%clk 0:01:56]} 17. a3 {[%clk 0:02:26]}  Na6 {[%clk 0:01:55]} 18. Kh1 {[%clk 0:02:24]}  Rd8 {[%clk 0:01:50]} 19. Rg1 {[%clk 0:02:24]}  Kf8 {[%clk 0:01:38]} 20. Bf3 {[%clk 0:02:16]}  Qh7 {[%clk 0:01:34]} 21. Qb3 {[%clk 0:02:07]}  Ke7 {[%clk 0:01:03]} 22. Rg2 {[%clk 0:01:50]}  Bd7 {[%clk 0:00:47]} 23. Rag1 {[%clk 0:01:49]}  g6 {[%clk 0:00:47]} 24. Qc3 {[%clk 0:01:33]}  Qh8 {[%clk 0:00:46]} 25. Qxa5 {[%clk 0:01:31]}  b5 {[%clk 0:00:41]} 26. cxb5 {[%clk 0:01:27]}  cxb5 {[%clk 0:00:42]} 27. Qb6 {[%clk 0:01:27]}  Rdb8 {[%clk 0:00:35]} 28. Qd6+ {[%clk 0:01:24]}  Ke8 {[%clk 0:00:36]} 29. f5 {[%clk 0:01:04]}  exf5 {[%clk 0:00:34]} 30. Nf6+ {[%clk 0:01:04]}  Qxf6 {[%clk 0:00:28]} 31. Qxf6 {[%clk 0:01:03]}  Ra7 {[%clk 0:00:28]} 32. Bd5 {[%clk 0:00:48]}  Bc8 {[%clk 0:00:26]} 33. Bc6+ {[%clk 0:00:36]}  Kf8 {[%clk 0:00:16]} 34. Rxg6 {[%clk 0:00:35]} 1-0


[Site "https://www.chess.com"]

[Event "Titled Tuesday Blitz October 31 Late 2023"]
[White "Avazkhonov, Alikhon"]
[Black "Rose, Felix"]
[WhiteFideId "14208504"]
[BlackFideId "5105722"]
[WhiteElo "2528"]
[BlackElo "2356"]
[Result "1-0"]
[Round "7"]
[TimeControl "180+1"]
[Date "2023.10.31"]
[WhiteClock "0:02:38"]
[BlackClock "0:01:16"]
[Board "77"]

1. d4 {[%clk 0:03:00]}  d5 {[%clk 0:02:58]} 2. c4 {[%clk 0:03:01]}  e6 {[%clk 0:02:58]} 3. Nc3 {[%clk 0:03:01]}  Nf6 {[%clk 0:02:58]} 4. cxd5 {[%clk 0:03:02]}  exd5 {[%clk 0:02:59]} 5. Bg5 {[%clk 0:03:02]}  c6 {[%clk 0:02:59]} 6. e3 {[%clk 0:03:03]}  Be7 {[%clk 0:03:00]} 7. Bd3 {[%clk 0:03:03]}  Nbd7 {[%clk 0:03:00]} 8. Nf3 {[%clk 0:03:04]}  h6 {[%clk 0:03:01]} 9. Bh4 {[%clk 0:03:04]}  Nh5 {[%clk 0:03:01]} 10. Bxe7 {[%clk 0:03:01]}  Qxe7 {[%clk 0:03:02]} 11. Qc2 {[%clk 0:03:02]}  Nhf6 {[%clk 0:02:59]} 12. O-O-O {[%clk 0:03:01]}  Nb6 {[%clk 0:02:58]} 13. Ne5 {[%clk 0:03:00]}  Be6 {[%clk 0:02:58]} 14. Kb1 {[%clk 0:02:59]}  O-O-O {[%clk 0:02:57]} 15. Nb5 {[%clk 0:02:47]}  a6 {[%clk 0:01:44]} 16. Na7+ {[%clk 0:02:42]}  Kc7 {[%clk 0:01:37]} 17. Naxc6 {[%clk 0:02:42]}  bxc6 {[%clk 0:01:26]} 18. Qxc6+ {[%clk 0:02:42]}  Kb8 {[%clk 0:01:27]} 19. Qxb6+ {[%clk 0:02:42]}  Qb7 {[%clk 0:01:20]} 20. Nc6+ {[%clk 0:02:42]}  Kc8 {[%clk 0:01:16]} 21. Bxa6 {[%clk 0:02:38]} 1-0


[Site "https://www.chess.com"]